bitfinex/quotes_BTCUSD_20240929
["timestamp","ask_amount","ask_price","bid_price","bid_amount"]
[1727584418847,0.004354,65868.0,65867.0,0.24183332]
[1727584420616,0.004354,65868.0,65867.0,0.42353332]
[1727584422216,0.004354,65868.0,65867.0,0.24183332]
[1727584444262,0.04986924,65868.0,65867.0,0.24183332]
[1727584446575,0.04989222,65868.0,65867.0,0.24183332]
[1727584453136,0.04989222,65868.0,65867.0,0.09001232]
[1727584456254,0.04989237,65868.0,65867.0,0.09001232]
[1727584457197,0.004354,65868.0,65867.0,0.09001232]
[1727584457977,0.156172,65868.0,65867.0,0.09001232]
[1727584458741,0.22452912,65868.0,65867.0,0.09001232]
[1727584459025,0.49578837,65868.0,65867.0,0.09001232]
[1727584459431,0.49578837,65868.0,65867.0,0.028827]
[1727584459432,0.40471162,65868.0,65867.0,0.028827]
[1727584459699,0.51855756,65868.0,65867.0,0.028827]
[1727584460427,0.56032207,65868.0,65867.0,0.014827]
[1727584460665,0.56032207,65868.0,65867.0,0.028827]
[1727584460912,0.56032207,65868.0,65867.0,0.014827]
[1727584461152,0.40648472,65868.0,65867.0,0.000827]
[1727584461399,0.40648472,65868.0,65867.0,0.006827]
[1727584461400,0.52132779,65868.0,65867.0,0.006827]
[1727584461648,0.71258074,65868.0,65867.0,0.020827]
[1727584461892,0.84456411,65868.0,65867.0,0.020827]
[1727584462126,0.84456411,65868.0,65867.0,0.006827]
[1727584462368,0.73077411,65868.0,65867.0,0.013827]
[1727584462892,0.83077411,65868.0,65867.0,0.006827]
[1727584463158,0.83077411,65868.0,65867.0,0.012827]
[1727584463392,0.83077411,65868.0,65867.0,0.006827]
[1727584463630,0.83077411,65868.0,65867.0,0.011827]
[1727584463863,0.83077411,65868.0,65867.0,0.006827]
[1727584464399,0.85557474,65868.0,65867.0,0.006827]
[1727584464647,0.83177411,65868.0,65867.0,0.000827]
[1727584464896,0.83177411,65868.0,65867.0,0.003827]
[1727584465061,0.83077411,65868.0,65867.0,0.003827]
[1727584465303,0.83177411,65868.0,65867.0,0.000827]
[1727584465513,0.83277411,65868.0,65867.0,0.000827]
[1727584465871,0.83166917,65868.0,65867.0,0.000827]
[1727584466115,0.83066917,65868.0,65867.0,0.000827]
[1727584466623,0.83266917,65868.0,65867.0,0.000827]
[1727584468333,0.83066917,65868.0,65867.0,0.000827]
[1727584468808,0.83166917,65868.0,65867.0,0.000827]
[1727584471381,0.83066917,65868.0,65867.0,0.000827]
[1727584471619,0.83266917,65868.0,65867.0,0.000827]
[1727584472125,0.83166917,65868.0,65867.0,0.000827]
[1727584472356,0.83266917,65868.0,65867.0,0.000827]
[1727584472788,0.83166917,65868.0,65867.0,0.000827]
[1727584475400,0.85547209,65868.0,65867.0,0.000827]
[1727584479429,0.83166917,65868.0,65867.0,0.000827]
[1727584482473,0.85547197,65868.0,65867.0,0.000827]
[1727584485024,0.85596602,65868.0,65867.0,0.000827]
[1727584489764,0.86452705,65868.0,65867.0,0.000827]
[1727584494366,0.85600184,65868.0,65867.0,0.000827]
[1727584495722,0.85572303,65868.0,65867.0,0.000827]
[1727584498733,0.64813966,65868.0,65867.0,0.000827]
[1727584499649,0.64823908,65868.0,65867.0,0.000827]
[1727584500788,0.55243908,65868.0,65867.0,0.000827]
[1727584501497,0.43760397,65868.0,65867.0,0.000827]
[1727584501717,0.43760397,65868.0,65867.0,0.080727]
[1727584501945,0.41380117,65868.0,65867.0,0.080727]
[1727584507868,0.15694445,65868.0,65867.0,0.46210121]
[1727584508090,0.05156697,65868.0,65867.0,0.3472661]
[1727584508305,0.00607519,65868.0,65867.0,0.41001615]
[1727584508961,0.00607519,65868.0,65867.0,0.39219805]
[1727584509184,0.00607519,65868.0,65867.0,0.39719805]
[1727584510138,0.00407519,65868.0,65867.0,0.39719805]
[1727584510591,0.00407519,65868.0,65867.0,0.40719805]
[1727584510811,0.00407519,65868.0,65867.0,0.40219805]
[1727584511028,0.00407519,65868.0,65867.0,0.39219805]
[1727584511495,0.00407519,65868.0,65867.0,0.41419805]
[1727584516341,0.00407519,65868.0,65867.0,0.40319805]
[1727584516566,0.00407519,65868.0,65867.0,0.41419805]
[1727584517293,0.00407519,65868.0,65867.0,0.40319805]
[1727584517735,0.00407519,65868.0,65867.0,0.41419805]
[1727584520627,0.00407519,65868.0,65867.0,0.51651376]
[1727584520806,0.00407519,65868.0,65867.0,0.41419805]
[1727584553853,0.04952825,65868.0,65867.0,0.41419805]
[1727584555150,0.00407519,65868.0,65867.0,0.41419805]
[1727584555386,0.04958285,65868.0,65867.0,0.41419805]
[1727584560318,0.04958234,65868.0,65867.0,0.41419805]
[1727584566091,0.00407519,65868.0,65867.0,0.41419805]
[1727584568985,0.04958001,65868.0,65867.0,0.41419805]
[1727584569199,0.00407519,65868.0,65867.0,0.41419805]
[1727584576554,0.00407519,65868.0,65867.0,0.31729805]
[1727584577738,0.00407519,65868.0,65867.0,0.23739805]
[1727584578262,0.07233154,65868.0,65867.0,0.23739805]
[1727584578747,0.07233154,65868.0,65867.0,0.22639805]
[1727584579212,0.07233154,65868.0,65867.0,0.23639805]
[1727584579647,0.07233154,65868.0,65867.0,0.22639805]
[1727584579858,0.07233154,65868.0,65867.0,0.22539805]
[1727584580075,0.07233154,65868.0,65867.0,0.23539805]
[1727584580294,0.07233154,65868.0,65867.0,0.22539805]
[1727584580535,0.00407519,65868.0,65867.0,0.22539805]
[1727584580809,0.00407519,65868.0,65867.0,0.23539805]
[1727584586565,0.25523191,65868.0,65867.0,0.08357705]
[1727584586802,0.58814245,65868.0,65867.0,0.020827]
[1727584587479,0.58814245,65868.0,65867.0,0.010827]
[1727584587682,0.58814245,65868.0,65867.0,0.000827]
[1727584587902,0.58814245,65868.0,65867.0,0.018827]
[1727584588119,0.58814245,65868.0,65867.0,0.009827]
[1727584588552,0.74453051,65868.0,65867.0,0.000827]
[1727584588760,0.74453051,65868.0,65867.0,0.007827]
[1727584588975,0.76833121,65868.0,65867.0,0.007827]
[1727584589400,0.76833121,65868.0,65867.0,0.014827]
[1727584590964,0.77033121,65868.0,65867.0,0.014827]
[1727584591415,0.74653051,65868.0,65867.0,0.014827]
[1727584592303,0.744941,65868.0,65867.0,0.014827]
[1727584592757,0.88117929,65868.0,65867.0,0.014827]
[1727584592963,0.95262779,65868.0,65867.0,0.014827]
[1727584593185,0.88113326,65868.0,65867.0,0.014827]
[1727584594339,0.75373184,65868.0,65867.0,0.014827]
[1727584594790,0.7775345,65868.0,65867.0,0.014827]
[1727584595461,0.7775345,65868.0,65867.0,0.0139988]
[1727584595903,0.75373184,65868.0,65867.0,0.0139988]
[1727584596985,0.75315748,65868.0,65867.0,0.0139988]
[1727584598883,0.77696006,65868.0,65867.0,0.0139988]
[1727584600204,0.93706006,65868.0,65867.0,0.0139988]
[1727584600425,0.77696006,65868.0,65867.0,0.0139988]
[1727584601328,0.75315748,65868.0,65867.0,0.0139988]
[1727584604811,0.76816919,65868.0,65867.0,0.0139988]
[1727584605479,0.76816919,65868.0,65867.0,0.0148258]
[1727584605911,0.74436664,65868.0,65867.0,0.0148258]
[1727584606862,0.74421828,65868.0,65867.0,0.0148258]
[1727584608982,0.76721828,65868.0,65867.0,0.0148258]
[1727584610440,0.92703515,65868.0,65867.0,0.0148258]
[1727584610669,0.99818809,65868.0,65867.0,0.0148258]
[1727584610919,0.99818809,65868.0,65867.0,0.000827]
[1727584611148,1.00318809,65868.0,65867.0,0.001827]
[1727584611417,0.77221828,65868.0,65867.0,0.000827]
[1727584611675,0.76721828,65868.0,65867.0,0.000827]
[1727584611954,0.77721828,65868.0,65867.0,0.002827]
[1727584614540,0.80102307,65868.0,65867.0,0.002827]
[1727584615711,0.77721828,65868.0,65867.0,0.00131749]
[1727584618516,0.77721828,65868.0,65867.0,0.00214449]
[1727584618730,0.80102313,65868.0,65867.0,0.00214449]
[1727584621426,0.77721828,65868.0,65867.0,0.00214449]
[1727584622113,0.83547207,65868.0,65867.0,0.00214449]
[1727584622577,1.04263833,65868.0,65867.0,0.00214449]
[1727584623503,0.57979683,65866.0,65865.0,0.000827]
[1727584623739,0.57979683,65866.0,65864.0,0.000827]
[1727584623740,0.47496372,65865.0,65864.0,0.000827]
[1727584623967,0.37172483,65854.0,65853.0,0.22690658]
[1727584624206,0.63614292,65854.0,65853.0,0.22690658]
[1727584624445,0.25504477,65846.0,65845.0,0.22690658]
[1727584624669,0.41705751,65846.0,65845.0,0.22690658]
[1727584624895,0.41705751,65846.0,65845.0,0.07705273]
[1727584625113,0.151876,65843.0,65842.0,0.0969]
[1727584625340,0.41416338,65843.0,65842.0,0.0969]
[1727584626059,0.37174983,65843.0,65842.0,0.0969]
[1727584626746,0.37274983,65843.0,65842.0,0.1039]
[1727584628506,0.37374983,65843.0,65842.0,0.1119]
[1727584628728,0.39755935,65843.0,65842.0,0.1119]
[1727584629601,0.54063825,65843.0,65842.0,0.1119]
[1727584630031,0.53963825,65843.0,65842.0,0.1039]
[1727584630280,0.54063825,65843.0,65842.0,0.1039]
[1727584630941,0.54063825,65843.0,65842.0,0.104727]
[1727584632170,0.58595711,65843.0,65842.0,0.104727]
[1727584632577,0.53863825,65843.0,65842.0,0.104727]
[1727584632755,0.54063825,65843.0,65842.0,0.104727]
[1727584633620,0.51682873,65843.0,65842.0,0.104727]
[1727584634221,0.37374983,65843.0,65842.0,0.104727]
[1727584635580,0.37374983,65843.0,65842.0,0.10169169]
[1727584638168,0.41908912,65843.0,65842.0,0.10169169]
[1727584638426,0.41909533,65843.0,65842.0,0.10169169]
[1727584638632,0.37374983,65843.0,65842.0,0.10169169]
[1727584639817,0.41909533,65843.0,65842.0,0.10169169]
[1727584641737,0.53184154,65843.0,65842.0,0.10169169]
[1727584642672,0.41909243,65843.0,65842.0,0.10169169]
[1727584643116,0.41709243,65843.0,65842.0,0.10169169]
[1727584643336,0.41709243,65843.0,65842.0,0.18269169]
[1727584643337,0.25691472,65843.0,65842.0,0.18269169]
[1727584643563,0.25891472,65843.0,65842.0,0.18269169]
[1727584643781,0.25691472,65843.0,65842.0,0.18269169]
[1727584644196,0.30225732,65843.0,65842.0,0.18269169]
[1727584644637,0.30425732,65843.0,65842.0,0.18269169]
[1727584644894,0.30225732,65843.0,65842.0,0.18269169]
[1727584646679,0.30425732,65843.0,65842.0,0.18269169]
[1727584647115,0.30225732,65843.0,65842.0,0.18269169]
[1727584647987,0.25691472,65843.0,65842.0,0.18269169]
[1727584648210,0.30226993,65843.0,65842.0,0.18269169]
[1727584649492,0.25691472,65843.0,65842.0,0.18269169]
[1727584650178,0.102,65843.0,65842.0,0.18269169]
[1727584650415,0.002,65843.0,65842.0,0.33456969]
[1727584650659,0.002,65843.0,65842.0,0.41170225]
[1727584651351,0.001,65843.0,65842.0,0.40470225]
[1727584651568,0.002,65843.0,65842.0,0.40970225]
[1727584651801,0.002,65843.0,65842.0,0.40470225]
[1727584652006,0.001,65843.0,65842.0,0.40470225]
[1727584652212,0.002,65843.0,65842.0,0.40970225]
[1727584652444,0.003,65843.0,65842.0,0.41670225]
[1727584652847,0.002,65843.0,65842.0,0.40970225]
[1727584653314,0.004656,65843.0,65842.0,0.42170225]
[1727584664397,0.004656,65843.0,65842.0,0.69650058]
[1727584665525,0.002656,65843.0,65842.0,0.69150058]
[1727584665732,0.003656,65843.0,65842.0,0.70250058]
[1727584665957,0.001656,65843.0,65842.0,0.67950058]
[1727584666411,0.003656,65843.0,65842.0,0.70450058]
[1727584667510,0.002656,65843.0,65842.0,0.69050058]
[1727584667993,0.002656,65843.0,65842.0,0.70450058]
[1727584671091,0.002656,65843.0,65842.0,0.81933569]
[1727584672220,0.002656,65843.0,65842.0,0.70450058]
[1727584672444,0.002656,65843.0,65842.0,0.81933569]
[1727584675058,0.002656,65843.0,65842.0,0.81733569]
[1727584677740,0.002656,65843.0,65842.0,0.70250058]
[1727584677954,0.002656,65843.0,65842.0,0.81733569]
[1727584684049,0.002656,65843.0,65842.0,0.6978253]
[1727584684962,0.002656,65843.0,65842.0,0.70164953]
[1727584685401,0.002656,65843.0,65842.0,0.6978253]
[1727584687159,0.002656,65843.0,65842.0,0.54253736]
[1727584687647,0.002656,65843.0,65842.0,0.25483756]
[1727584690806,0.002656,65843.0,65842.0,0.24083756]
[1727584691024,0.002656,65843.0,65842.0,0.25483756]
[1727584691464,0.001656,65843.0,65842.0,0.22983756]
[1727584691676,0.001656,65843.0,65842.0,0.24383756]
[1727584691889,0.001656,65843.0,65842.0,0.25783756]
[1727584692299,0.001656,65843.0,65842.0,0.24383756]
[1727584692744,0.001656,65843.0,65842.0,0.25783756]
[1727584695846,0.001656,65843.0,65842.0,0.37267267]
[1727584702096,0.001656,65843.0,65842.0,0.25783756]
[1727584704169,0.001656,65843.0,65842.0,0.46587267]
[1727584704392,0.001656,65843.0,65842.0,0.54557267]
[1727584714123,0.001656,65843.0,65842.0,0.43073756]
[1727584730898,0.001656,65843.0,65842.0,0.33753756]
[1727584732916,0.001656,65843.0,65842.0,0.25783756]
[1727584756942,0.001656,65843.0,65842.0,0.44067484]
[1727584757159,0.001656,65843.0,65842.0,0.43763756]
[1727584757408,0.001656,65843.0,65842.0,0.55247267]
[1727584761173,0.001656,65843.0,65842.0,0.68417009]
[1727584761433,0.001656,65843.0,65842.0,0.93090124]
[1727584761682,0.001656,65843.0,65842.0,1.1156736]
[1727584762185,0.001656,65843.0,65842.0,1.11559983]
[1727584762444,0.001656,65843.0,65842.0,0.86245803]
[1727584764594,0.001656,65843.0,65842.0,0.90805607]
[1727584766017,0.001656,65843.0,65842.0,0.90805031]
[1727584766252,0.001656,65843.0,65842.0,0.90805118]
[1727584767398,0.001656,65843.0,65842.0,0.86245803]
[1727584767873,0.001656,65843.0,65842.0,0.90805118]
[1727584768093,0.001656,65843.0,65842.0,0.86245803]
[1727584768764,0.001656,65843.0,65842.0,0.90805118]
[1727584768999,0.001656,65843.0,65842.0,0.86245803]
[1727584775707,0.001656,65843.0,65842.0,0.8615865]
[1727584781278,0.001656,65843.0,65842.0,0.90799362]
[1727584782038,0.001656,65843.0,65842.0,0.87055055]
[1727584783509,0.001656,65843.0,65842.0,1.12321196]
[1727584783765,0.001656,65843.0,65842.0,1.10964494]
[1727584784506,0.001656,65843.0,65842.0,1.10917223]
[1727584784949,0.001656,65843.0,65842.0,1.10898439]
[1727584786039,0.001656,65843.0,65842.0,1.12298439]
[1727584787042,0.001656,65843.0,65842.0,1.17778783]
[1727584787265,0.001656,65843.0,65842.0,1.12298439]
[1727584787502,0.001656,65843.0,65842.0,1.20057033]
[1727584789709,0.001656,65843.0,65842.0,1.20020471]
[1727584797913,0.001656,65843.0,65842.0,1.10911925]
[1727584799434,0.001656,65843.0,65842.0,1.10925107]
[1727584799686,0.001656,65843.0,65842.0,1.20035177]
[1727584803513,0.001656,65843.0,65842.0,1.10925107]
[1727584806390,0.001656,65843.0,65842.0,1.22312695]
[1727584817680,0.001656,65843.0,65842.0,1.22337682]
[1727584817908,0.001656,65843.0,65842.0,1.10940741]
[1727584821680,0.001656,65843.0,65842.0,1.01100741]
[1727584822348,0.001656,65843.0,65842.0,1.01103882]
[1727584823630,0.001656,65843.0,65842.0,0.89620371]
[1727584823881,0.001656,65843.0,65842.0,1.01103882]
[1727584827023,0.001656,65843.0,65842.0,0.88316563]
[1727584827264,0.001656,65843.0,65842.0,0.88325419]
[1727584830654,0.001656,65843.0,65842.0,0.80612163]
[1727584830884,0.001656,65843.0,65842.0,0.88317787]
[1727584832318,0.001656,65843.0,65842.0,0.88318999]
[1727584834241,0.001656,65843.0,65842.0,0.80178999]
[1727584847067,0.001656,65843.0,65842.0,0.80202517]
[1727584847961,0.001656,65843.0,65842.0,0.91608775]
[1727584850063,0.001656,65843.0,65842.0,0.50890212]
[1727584850291,0.001656,65843.0,65842.0,0.63354653]
[1727584850504,0.001656,65843.0,65842.0,0.26585376]
[1727584850734,0.001656,65843.0,65842.0,0.31147217]
[1727584850964,0.001656,65843.0,65842.0,0.42317023]
[1727584851391,0.001656,65843.0,65842.0,0.40917023]
[1727584851607,0.001656,65843.0,65842.0,0.34955182]
[1727584851830,0.001656,65843.0,65842.0,0.36355182]
[1727584852073,0.001656,65843.0,65842.0,0.37755182]
[1727584852330,0.001656,65843.0,65842.0,0.36355182]
[1727584852566,0.001656,65843.0,65842.0,0.37755182]
[1727584852820,0.001656,65843.0,65842.0,0.36355182]
[1727584853295,0.001656,65843.0,65842.0,0.37755182]
[1727584853561,0.001656,65843.0,65842.0,0.36355182]
[1727584853994,0.001656,65843.0,65842.0,0.34955182]
[1727584854238,0.001656,65843.0,65842.0,0.36355182]
[1727584854696,0.001656,65843.0,65842.0,0.34955182]
[1727584855217,0.001656,65843.0,65842.0,0.37755182]
[1727584863303,0.001656,65843.0,65842.0,0.37255182]
[1727584863771,0.001656,65843.0,65842.0,0.49132603]
[1727584863989,0.001656,65843.0,65842.0,0.56852603]
[1727584864476,0.001656,65843.0,65842.0,0.67745039]
[1727584864720,0.001656,65843.0,65842.0,0.72896399]
[1727584866362,0.001656,65843.0,65842.0,0.79734359]
[1727584867026,0.001656,65843.0,65842.0,0.72896399]
[1727584870085,0.001656,65843.0,65842.0,0.79733696]
[1727584870331,0.001656,65843.0,65842.0,0.72896399]
[1727584870811,0.001656,65843.0,65842.0,0.79733696]
[1727584872456,0.001656,65843.0,65842.0,0.80590187]
[1727584874643,0.001656,65843.0,65842.0,0.80590874]
[1727584875102,0.001656,65843.0,65842.0,0.99046865]
[1727584877343,0.001656,65843.0,65842.0,0.86706863]
[1727584877582,0.001656,65843.0,65842.0,0.98190374]
[1727584879710,0.001656,65843.0,65842.0,0.9135239]
[1727584880393,0.001656,65843.0,65842.0,0.98191395]
[1727584881532,0.001656,65843.0,65842.0,0.9135239]
[1727584881811,0.001656,65843.0,65842.0,0.92166095]
[1727584883650,0.001656,65843.0,65842.0,0.97651201]
[1727584883905,0.001656,65843.0,65842.0,0.92166095]
[1727584884143,0.001656,65843.0,65842.0,0.97651113]
[1727584884370,0.001656,65843.0,65842.0,0.97592872]
[1727584885089,0.001656,65843.0,65842.0,0.96192872]
[1727584885552,0.001656,65843.0,65842.0,0.97592872]
[1727584885812,0.001656,65843.0,65842.0,0.94792872]
[1727584886038,0.001656,65843.0,65842.0,0.96192872]
[1727584886260,0.001656,65843.0,65842.0,0.97592872]
[1727584886718,0.001656,65843.0,65842.0,0.96192872]
[1727584886937,0.001656,65843.0,65842.0,0.97592872]
[1727584888618,0.22690658,65853.0,65852.0,0.46361434]
[1727584888852,0.22690658,65853.0,65852.0,0.80287978]
[1727584889105,0.22690658,65861.0,65860.0,0.15566123]
[1727584889363,0.22690658,65861.0,65860.0,0.27049634]
[1727584889618,0.17567519,65868.0,65867.0,0.151821]
[1727584889872,0.09407519,65868.0,65867.0,0.26665611]
[1727584890121,0.09407519,65868.0,65867.0,0.35139765]
[1727584891553,0.09407519,65868.0,65867.0,0.36039765]
[1727584892044,0.09407519,65868.0,65867.0,0.37039765]
[1727584894576,0.00407519,65868.0,65867.0,0.37039765]
[1727584901133,0.00407519,65868.0,65867.0,0.36139765]
[1727584901599,0.00407519,65868.0,65867.0,0.36439765]
[1727584901829,0.00407519,65868.0,65867.0,0.35139765]
[1727584902060,0.00407519,65868.0,65867.0,0.37939765]
[1727584902519,0.00407519,65868.0,65867.0,0.36539765]
[1727584902743,0.00407519,65868.0,65867.0,0.37939765]
[1727584904567,0.00407519,65868.0,65867.0,0.50881764]
[1727584907263,0.00407519,65868.0,65867.0,0.37939765]
[1727584914093,0.00407519,65868.0,65867.0,0.35139765]
[1727584914336,0.00407519,65868.0,65867.0,0.37939765]
[1727584914573,0.00407519,65868.0,65867.0,0.36539765]
[1727584915291,0.00407519,65868.0,65867.0,0.37939765]
[1727584915539,0.00407519,65868.0,65867.0,0.39339765]
[1727584928483,0.00407519,65868.0,65867.0,0.52421764]
[1727584928728,0.00407519,65868.0,65867.0,0.60481764]
[1727584933199,0.00407519,65868.0,65867.0,0.47399765]
[1727584936038,0.00407519,65868.0,65867.0,0.39339765]
[1727584952321,0.00407519,65868.0,65867.0,0.27856254]
[1727584961632,0.00407519,65868.0,65867.0,0.26456254]
[1727584961863,0.00407519,65868.0,65867.0,0.27856254]
[1727584962093,0.00407519,65868.0,65867.0,0.25056254]
[1727584962575,0.00407519,65868.0,65867.0,0.26456254]
[1727584965280,0.00407519,65868.0,65867.0,0.25056254]
[1727584965507,0.00407519,65868.0,65867.0,0.23656254]
[1727584965741,0.00407519,65868.0,65867.0,0.26456254]
[1727584966206,0.00407519,65868.0,65867.0,0.25056254]
[1727584966406,0.00407519,65868.0,65867.0,0.26456254]
[1727584966896,0.00407519,65868.0,65867.0,0.27856254]
[1727584995612,0.00407519,65868.0,65867.0,0.27554577]
[1727585004931,0.00407519,65868.0,65867.0,0.27637277]
[1727585012834,0.00407519,65868.0,65867.0,0.19163123]
[1727585013290,0.00407519,65868.0,65867.0,0.27622292]
[1727585025221,0.00407519,65868.0,65867.0,0.35822292]
[1727585038458,0.00407519,65868.0,65867.0,0.47305803]
[1727585056608,0.00407519,65868.0,65867.0,0.27622292]
[1727585057354,0.04147584,65868.0,65867.0,0.27622292]
[1727585062875,0.00407519,65868.0,65867.0,0.27622292]
[1727585111270,0.00137519,65868.0,65867.0,0.27622292]
[1727585115606,0.00137519,65868.0,65867.0,0.34924292]
[1727585128008,0.00137519,65868.0,65867.0,0.20043869]
[1727585128247,0.24727455,65868.0,65867.0,0.20043869]
[1727585128472,0.63520474,65868.0,65867.0,0.20043869]
[1727585128729,0.77176871,65868.0,65867.0,0.115847]
[1727585128962,0.63720474,65868.0,65867.0,0.115847]
[1727585129217,0.63720474,65868.0,65867.0,0.073847]
[1727585129457,0.63720474,65868.0,65867.0,0.075847]
[1727585129672,0.63720474,65868.0,65867.0,0.076847]
[1727585129888,0.63720474,65868.0,65867.0,0.073847]
[1727585130357,0.63720474,65868.0,65867.0,0.076847]
[1727585130589,0.63720474,65868.0,65867.0,0.075847]
[1727585130815,0.75079683,65868.0,65867.0,0.073847]
[1727585131075,0.75079683,65868.0,65867.0,0.074847]
[1727585131324,0.75079491,65868.0,65867.0,0.076847]
[1727585132573,0.75079491,65868.0,65867.0,0.079847]
[1727585133034,0.75079491,65868.0,65867.0,0.073847]
[1727585133035,0.63720474,65868.0,65867.0,0.073847]
[1727585133302,0.63720474,65868.0,65867.0,0.083847]
[1727585133761,0.72802275,65868.0,65867.0,0.078847]
[1727585134931,0.72802275,65868.0,65867.0,0.084847]
[1727585135196,0.59640204,65868.0,65867.0,0.084847]
[1727585135648,0.59640204,65868.0,65867.0,0.079847]
[1727585135890,0.50558403,65868.0,65867.0,0.07677773]
[1727585136107,0.50558403,65868.0,65867.0,0.07477773]
[1727585136597,0.35763191,65868.0,65867.0,0.07977773]
[1727585136817,0.50507993,65868.0,65867.0,0.07977773]
[1727585137059,0.65654645,65868.0,65867.0,0.009]
[1727585137286,0.65654645,65868.0,65867.0,0.005]
[1727585137534,0.151839,65859.0,65858.0,0.22690658]
[1727585138080,0.151839,65859.0,65858.0,0.08613702]
[1727585138310,0.151839,65859.0,65853.0,0.325951]
[1727585138541,0.151845,65857.0,65853.0,0.1741]
[1727585139945,0.151845,65857.0,65853.0,0.1871]
[1727585140837,0.151845,65857.0,65853.0,0.2011]
[1727585141279,0.151845,65857.0,65853.0,0.2719]
[1727585142201,0.15384,65859.0,65853.0,0.423751]
[1727585142430,0.239413,65859.0,65853.0,0.423751]
[1727585142652,0.151843,65858.0,65853.0,0.423751]
[1727585143080,0.153843,65858.0,65853.0,0.409751]
[1727585143338,0.153843,65858.0,65853.0,0.396751]
[1727585143530,0.153843,65858.0,65853.0,0.419751]
[1727585143652,0.153843,65858.0,65853.0,0.408751]
[1727585143891,0.153843,65858.0,65853.0,0.396751]
[1727585144164,0.153843,65858.0,65853.0,0.409751]
[1727585144383,0.153843,65858.0,65854.0,0.08615892]
[1727585146003,0.151843,65858.0,65854.0,0.09915892]
[1727585146439,0.151843,65858.0,65854.0,0.11115892]
[1727585147291,0.151843,65858.0,65854.0,0.11198592]
[1727585149897,0.151843,65858.0,65854.0,0.26383592]
[1727585151035,0.0552074,65858.0,65855.0,0.151846]
[1727585151242,0.0552074,65858.0,65855.0,0.23799944]
[1727585151458,0.0552074,65858.0,65855.0,0.08615344]
[1727585152371,0.0552074,65858.0,65855.0,0.09915344]
[1727585152621,0.0552074,65858.0,65855.0,0.11115344]
[1727585152861,0.153841,65859.0,65855.0,0.11115344]
[1727585153490,0.002,65859.0,65855.0,0.11115344]
[1727585153698,0.151842,65858.0,65855.0,0.11115344]
[1727585153910,0.151842,65858.0,65855.0,0.09915344]
[1727585154123,0.151842,65858.0,65855.0,0.11015344]
[1727585155246,0.151842,65858.0,65855.0,0.09915344]
[1727585155667,0.151842,65858.0,65855.0,0.09815344]
[1727585155907,0.151839,65859.0,65855.0,0.09815344]
[1727585156140,0.151839,65859.0,65855.0,0.11015344]
[1727585156627,0.151839,65859.0,65855.0,0.09815344]
[1727585156841,0.151839,65859.0,65855.0,0.09915344]
[1727585157075,0.2279422,65859.0,65855.0,0.09915344]
[1727585157314,0.2279422,65859.0,65855.0,0.09715344]
[1727585157553,0.0761032,65859.0,65855.0,0.10915344]
[1727585157778,0.15184,65859.0,65855.0,0.26100144]
[1727585158291,0.15369895,65861.0,65855.0,0.26100144]
[1727585158516,0.002,65860.0,65855.0,0.26100144]
[1727585158972,0.002,65860.0,65855.0,0.10915344]
[1727585159198,0.15369895,65861.0,65856.0,0.151844]
[1727585159430,0.06252969,65861.0,65857.0,0.23798228]
[1727585159657,0.21436569,65861.0,65857.0,0.08614028]
[1727585159900,0.151839,65860.0,65855.0,0.170847]
[1727585160134,0.151839,65860.0,65858.0,0.0861348]
[1727585160374,0.151839,65860.0,65856.0,0.151846]
[1727585160623,0.151839,65860.0,65857.0,0.009]
[1727585160873,0.151839,65860.0,65858.0,0.0861348]
[1727585161328,0.06252969,65861.0,65858.0,0.0861348]
[1727585161547,0.21436569,65861.0,65858.0,0.0861348]
[1727585161762,0.21436569,65861.0,65855.0,0.151846]
[1727585162196,0.21436569,65861.0,65858.0,0.021]
[1727585162417,0.21436569,65861.0,65858.0,0.011]
[1727585162642,0.21436569,65861.0,65856.0,0.151846]
[1727585162848,0.21436569,65861.0,65859.0,0.08612933]
[1727585163091,0.21436569,65861.0,65856.0,0.151846]
[1727585163272,0.21436569,65861.0,65860.0,0.08612386]
[1727585163487,0.21436569,65861.0,65858.0,0.007]
[1727585163689,0.05200287,65860.0,65856.0,0.159846]
[1727585164576,0.20384087,65860.0,65856.0,0.159846]
[1727585165068,0.20384087,65860.0,65859.0,0.007]
[1727585165312,0.20384087,65860.0,65858.0,0.008]
[1727585165779,0.20384087,65860.0,65856.0,0.159846]
[1727585166004,0.151839,65859.0,65854.0,0.152675]
[1727585166240,0.151839,65859.0,65856.0,0.009]
[1727585166956,0.05200287,65860.0,65856.0,0.159844]
[1727585167176,0.20383987,65860.0,65856.0,0.159844]
[1727585167406,0.06174582,65859.0,65856.0,0.159844]
[1727585167883,0.06174582,65859.0,65856.0,0.008]
[1727585168563,0.06174582,65859.0,65855.0,0.151848]
[1727585169053,0.06174582,65859.0,65856.0,0.019]
[1727585169527,0.21636569,65861.0,65856.0,0.009]
[1727585169528,0.21436569,65861.0,65856.0,0.009]
[1727585169763,0.21436569,65861.0,65855.0,0.161848]
[1727585169985,0.06252969,65861.0,65857.0,0.151844]
[1727585170217,0.21436469,65861.0,65857.0,0.151844]
[1727585170453,0.06335918,65860.0,65857.0,0.151844]
[1727585171096,0.06335918,65860.0,65857.0,0.151842]
[1727585172002,0.06335918,65860.0,65857.0,0.151843]
[1727585172241,0.06335918,65860.0,65857.0,0.009]
[1727585172477,0.06335918,65860.0,65857.0,0.017]
[1727585172710,0.04547853,65859.0,65857.0,0.017827]
[1727585173144,0.04747853,65859.0,65857.0,0.017827]
[1727585173656,0.0702178,65859.0,65857.0,0.017827]
[1727585174331,0.0702178,65859.0,65858.0,0.08613208]
[1727585174590,0.12547731,65859.0,65858.0,0.08613208]
[1727585174803,0.12347731,65859.0,65858.0,0.08613208]
[1727585175467,0.05525951,65859.0,65858.0,0.09613208]
[1727585175703,0.05525951,65859.0,65858.0,0.10513208]
[1727585176177,0.12355977,65859.0,65858.0,0.10513208]
[1727585177114,0.05525951,65859.0,65858.0,0.10513208]
[1727585177329,0.0683005,65859.0,65858.0,0.10513208]
[1727585179417,0.0683005,65859.0,65858.0,0.25697308]
[1727585179638,0.0683005,65859.0,65858.0,0.10513208]
[1727585180768,0.09095707,65860.0,65858.0,0.10513208]
[1727585181017,0.06830108,65859.0,65858.0,0.10513208]
[1727585181688,0.06830108,65859.0,65858.0,0.09513208]
[1727585182113,0.06830108,65859.0,65858.0,0.10413208]
[1727585182550,0.09095707,65860.0,65858.0,0.10413208]
[1727585182773,0.23955651,65860.0,65858.0,0.09513208]
[1727585182990,0.23955651,65860.0,65858.0,0.10513208]
[1727585183199,0.09106881,65860.0,65858.0,0.10513208]